Cogmind - Beta 9.1 @@@ ROGUE MODE // 2019.11.08 @ 19:44:23 Player: Pitt Result: Destroyed by Y-45 Defender with Heavy Assault Rifle Performance ------------- Evolutions (1) 500 Regions Visited (2) 400 Robots Destroyed (44) 220 Value Destroyed (854) 854 Prototype IDs (0) 0 Alien Tech Used (0) 0 Bonus (0) 0 TOTAL SCORE: 1974 Bonus ------- None Cogmind --------- Core Integrity 0/400 Matter 101/300 Energy 250/250 System Corruption 0% Temperature Cool (9) Location -9/Materials Parts ------- Power (1) Ion Engine Propulsion (2) Hover Unit Utility (4) Large Storage Unit Improved Terrain Scanner Seismic Analyzer Weapon (2) Mini Grenade Launcher Inventory (10) Light Ion Engine High-capacity Storage Unit Structural Scanner Structural Scanner Improved Terrain Scanner Targeting Computer Propulsion Shielding Hacking Suite Mining Laser Peak State ------------ Power Light Ion Engine Propulsion Aluminum Leg Aluminum Leg Utility Large Storage Unit Improved Terrain Scanner Seismic Analyzer Hacking Suite Weapon Light Assault Rifle Mini Grenade Launcher Inventory Light Ion Engine Hover Unit High-capacity Storage Unit Structural Scanner Structural Scanner Improved Terrain Scanner Targeting Computer Propulsion Shielding Assault Rifle Mining Laser [Rating: 14] Favorites ----------- Power Light Ion Engine Engine Light Ion Engine Propulsion Aluminum Leg Leg Aluminum Leg Hover Unit Hover Unit Utility Large Storage Unit Device Improved Terrain Scanner Storage Large Storage Unit Processor Seismic Analyzer Hackware Hacking Suite Protection Propulsion Shielding Weapon Medium Laser Energy Gun Medium Laser Ballistic Gun Assault Rifle Launcher Mini Grenade Launcher Special Weapon Mining Laser Build | -11 -10 -9 ------- Run | Scr Mat Mat Slots Evolved 2 | . . 2 Power . | . . . Propulsion . | . . . Utility 2 | . . 2 Weapon . | . . . Parts Attached 23 | 7 8 8 Power 4 | 1 1 2 Engine 4 | 1 1 2 Core . | . . . Reactor . | . . . Propulsion 4 | 2 1 1 Treads . | . . . Leg 3 | 2 1 . Wheel . | . . . Hover 1 | . . 1 Flight . | . . . Utility 7 | 2 3 2 Device 2 | 1 . 1 Storage 2 | 1 1 . Processor 1 | . . 1 Hackware 1 | . 1 . Protection 1 | . 1 . Artifact . | . . . Weapon 8 | 2 3 3 Energy Gun 2 | 2 . . Energy Cannon . | . . . Ballistic Gun 3 | . 2 1 Ballistic Cannon . | . . . Launcher 2 | . . 2 Special Weapon 1 | . 1 . Impact Weapon . | . . . Slashing Weapon . | . . . Piercing Weapon . | . . . Special Melee Weapon . | . . . Unidentified Prototypes . | . . . Parts Lost 11 | . 4 7 Power 3 | . 1 2 Propulsion 3 | . 1 2 Utility 1 | . . 1 Weapon 4 | . 2 2 Highest Loss Streak 6 | . 2 6 Average Slot Usage (%) 84 | . 95 72 Engine 11 | . 13 9 Leg 18 | . 27 6 Hover 1 | . . 3 Device 5 | . 1 11 Storage 12 | . 14 11 Processor 5 | . . 11 Hackware 7 | . 9 4 Protection 1 | . 3 . Energy Gun 8 | . 15 . Ballistic Gun 7 | . 7 7 Launcher 3 | . . 6 Naked Turns . | . . . Heaviest Build 24 | 12 24 23 Greatest Support 20 | 20 20 20 Greatest Overweight (x) 7 | . 2 7 Average Overweight (x) 1 | . 1 2 Largest Inventory Capacity 10 | 6 10 10 Average Capacity 9 | 5 9 10 Most Carried 10 | 6 10 10 Average Carried 7 | 3 8 9 Final Capacity 10 | 6 10 10 Final Carried 10 | 6 10 9 Class Distribution -------------------- 77% | Mutant 22% | Scavenger-Mutant Dominant Class ---------------- Mutant | -10/Materials Mutant | -9/Materials Resources | -11 -10 -9 ----------- Run | Scr Mat Mat Matter Collected 551 | 202 168 181 Remotely . | . . . Salvage Created 906 | 164 362 380 Parts 79 | 20 23 36 Haulers Intercepted 1 | . . 1 Recyclers Shooed . | . . . Parts Field Recycled . | . . . Retrieved Matter . | . . . Parts Self-Destructed . | . . . Prevented . | . . . Kills | -11 -10 -9 ------- Run | Scr Mat Mat Combat Hostiles Destroyed 26 | . 12 14 Guns 12 | . 12 . AOE 14 | . . 14 Classes Destroyed 11 | 2 4 5 Worker 3 | . 1 2 Builder 3 | . . 3 Tunneler 6 | 6 . . Hauler 1 | . . 1 Recycler 1 | 1 . . Mechanic 1 | . . 1 Operator 2 | . 1 1 Watcher 1 | . . 1 Swarmer 9 | . 6 3 Grunt 16 | . 6 10 Sentry 1 | . . 1 Best Kill Streak 7 | 5 4 7 Combat Bots Only 5 | . 3 5 Max Kills in Single Turn 2 | 1 1 2 Gunslinging . | . . . Exploded 2 | . . 2 Melee . | . . . Uniques/NPCs Destroyed . | . . . Combat | -11 -10 -9 -------- Run | Scr Mat Mat Damage Taken 1394 | . 588 806 Core 602 | . 202 400 Absorbed by Shields . | . . . Core Remaining (%) 59 | 100 19 . Volleys Fired 115 | 15 58 42 Largest 2 | 2 2 2 Hottest 100 | 100 100 40 Shots Fired 168 | 30 87 51 Gun 139 | 30 82 27 Cannon . | . . . Launcher 24 | . . 24 Special 5 | . 5 . Kinetic 57 | . 30 27 Thermal 87 | 30 57 . Explosive 24 | . . 24 Electromagnetic . | . . . Robot Hit Streak 17 | 17 6 10 Robot Miss Streak 4 | 2 4 3 Penetration Max . | . . . Secondary Targets . | . . . Shots Hit Robots 97 | 20 47 30 Core Hits 66 | 8 23 35 Critical Hits . | . . . Critical Kills . | . . . Critical Parts Destroyed . | . . . Melee Attacks . | . . . Impact . | . . . Slashing . | . . . Piercing . | . . . Sneak Attacks . | . . . Combat Hostiles . | . . . Follow-up Attacks . | . . . Damage Inflicted 2715 | 249 652 1814 Guns 1075 | 249 652 174 Cannons . | . . . Explosions 1640 | . . 1640 Melee . | . . . Ramming . | . . . Kinetic 404 | . 230 174 Thermal 671 | 249 422 . Explosive 1640 | . . 1640 Electromagnetic . | . . . Impact . | . . . Slashing . | . . . Piercing . | . . . Highest Corruption . | . . . Average Corruption . | . . . Corruption Purged . | . . . Overload Shots . | . . . Overflow Damage 70 | . . 70 Projectiles . | . . . Explosions 70 | . . 70 Melee . | . . . Knockbacks . | . . . Impact . | . . . Kinetic . | . . . Secondary . | . . . Self-Inflicted Damage 58 | . . 58 Shots 3 | . . 3 Rammed . | . . . Targets Rammed . | . . . Kicked . | . . . Crushed . | . . . Highest Temperature 354 | 195 354 9 Average Temperature 93 | 68 108 4 Received Heat Transfer 483 | . 210 273 Siege Activations . | . . . Robots Corrupted . | . . . Combat Hostiles . | . . . Parts Fried . | . . . Impact Corruptions . | . . . Robots Melted . | . . . Combat Hostiles . | . . . Parts Melted 5 | 1 4 . Heat Transferred 1998 | 740 1258 . Parts Sabotaged . | . . . Parts Stolen . | . . . Parts Stripped . | . . . Power Chain Reactions . | . . . Missiles Intercepted . | . . . Alert | -11 -10 -9 ------- Run | Scr Mat Mat Peak Influence 384 | 35 262 384 Average Influence 138 | 20 130 202 Maximum Alert Level 1 | . 1 1 Low Security (%) 77 | . . . Level 1 22 | . . . Level 2 . | . . . Level 3 . | . . . Level 4 . | . . . Level 5 . | . . . High Security . | . . . Max Security . | . . . Squads Dispatched 4 | . 2 2 Investigation . | . . . Extermination . | . . . Reinforcement 4 | . 2 2 Assault . | . . . Garrison . | . . . Intercept . | . . . Construction Impeded 1 | . . 1 Haulers Reinforced . | . . . Stealth | -11 -10 -9 --------- Run | Scr Mat Mat Distress Signals 1 | . 1 . Communications Jammed . | . . . Distress Signals . | . . . Times Spotted 43 | . 21 22 Peak Tracking Total 6 | . 6 5 Tactical Retreats 1 | . 1 . Traps | -11 -10 -9 ------- Run | Scr Mat Mat Traps Triggered 1 | . 1 . Indirectly . | . . . Trap Hack Attempts . | . . . Triggered . | . . . Disarmed . | . . . Reprogrammed . | . . . Reused . | . . . Traps Extracted . | . . . Installed . | . . . Triggered . | . . . Machines | -11 -10 -9 ---------- Run | Scr Mat Mat Machines Disabled 2 | . . 2 Max in Single Turn 1 | . . 1 Machines Sabotaged . | . . . Garrisons Compromised . | . . . Overloaded Fab Kills . | . . . Fab Network Shutdowns . | . . . Hacking | -11 -10 -9 --------- Run | Scr Mat Mat Machines Accessed 5 | . 5 . Terminals 3 | . 3 . Fabricators . | . . . Repair Stations . | . . . Recycling Units 2 | . 2 . Scanalyzers . | . . . Garrison Access . | . . . Total Hacks 15 | . 15 . Successful 10 | . 10 . Failed 5 | . 5 . Catastrophic . | . . . Database Lockouts . | . . . Manual . | . . . Terminals 10 | . 10 . Fabricators . | . . . Repair Stations . | . . . Recycling Units 5 | . 5 . Scanalyzers . | . . . Garrison Access . | . . . Terminal Hacks 5 | . 5 . Alert Level 1 | . 1 . Locate Traps 1 | . 1 . Dispatch Records 1 | . 1 . Surveillance Status 1 | . 1 . Zone Layout 1 | . 1 . Fabricator Hacks . | . . . Repair Station Hacks . | . . . Recycling Unit Hacks 5 | . 5 . Report Inventory 2 | . 2 . Retrieve Components 3 | . 3 . Scanalyzer . | . . . Garrison Access Hacks . | . . . Unauthorized Hacks . | . . . Terminals . | . . . Fabricators . | . . . Repair Stations . | . . . Recycling Units . | . . . Scanalyzers . | . . . Garrison Access . | . . . Data Cores Recovered . | . . . Used . | . . . Hacking Detections 4 | . 4 . Full Trace Events 1 | . 1 . Feedback Events . | . . . Feedback Blocked . | . . . Robot Schematics Acquired . | . . . Robots Built . | . . . Matter . | . . . Time . | . . . Total Robot Build Rating . | . . . Part Schematics Acquired . | . . . Parts Built . | . . . Matter . | . . . Time . | . . . Total Part Build Rating . | . . . Parts Repaired . | . . . Time . | . . . Parts Recycled . | . . . Recycled Matter . | . . . Retrieved Matter . | . . . Retrieved Components 6 | . 6 . Parts Scanalyzed . | . . . Part Schematics Acquired . | . . . Parts Damaged . | . . . Bothacking | -11 -10 -9 ------------ Run | Scr Mat Mat Used RIF Installer . | . . . Robots Hacked . | . . . Non-combat . | . . . Combat . | . . . Robot Hacks Applied . | . . . Relay Couplers Released . | . . . Robots Rewired . | . . . Allies Hacked . | . . . Hacks Repelled . | . . . Allies | -11 -10 -9 -------- Run | Scr Mat Mat Total Allies . | . . . Largest Group . | . . . Highest-Rated Group . | . . . Highest-Rated Ally . | . . . Total Orders . | . . . Ally Attacks . | . . . Total Damage . | . . . Kills . | . . . Allies Corrupted . | . . . Allies Melted . | . . . Intel | -11 -10 -9 ------- Run | Scr Mat Mat Robot Analysis Total . | . . . Derelict Logs Recovered . | . . . Drone Launches . | . . . Drone Recoveries . | . . . Exploration | -11 -10 -9 ------------- Run | Scr Mat Mat Turns Passed 1210 | 210 540 460 Spaces Moved 527 | 128 238 161 Core 32 | 7 . 25 Treads . | . . . Legs 436 | 121 238 77 Wheels . | . . . Hover 59 | . . 59 Flight . | . . . Fastest Speed 50 | 50 120 120 Average Speed 162 | 116 150 216 Slowest Speed 400 | 120 180 400 Overloaded Moves . | . . . Propulsion Burnouts . | . . . Robots Hopped . | . . . Cave-ins Triggered . | . . . Exploration Rate (%) 27 | 4 57 22 Regions Visited 2 Branch Regions . Pre-discovered Areas . | . . . Known Exits Taken . | . . . Unknown Exits Taken 2 | 1 1 . Scrap Searched . | . . . Spaces Dug 4 | . 4 . Terrain Destroyed 156 | . 4 152 Melee . | . . . Projectile 4 | . 4 . AOE 152 | . . 152 Actions | -11 -10 -9 --------- Run | Scr Mat Mat Total 705 | 156 325 224 Wait 20 | . 11 9 Move 525 | 127 237 161 Hop . | . . . Pick Up 17 | 7 6 4 Fast Attach 10 | 6 3 1 Attach 10 | 1 4 5 Detach 3 | . 3 . Swap 3 | . 1 2 Drop 2 | . 2 . Fire 115 | 15 58 42 Melee . | . . . Ram . | . . . Kick . | . . . Crush . | . . . Escape Stasis . | . . . Rewire . | . . . Trap . | . . . Miscellaneous . | . . . Route ------- -11/Scrapyard -10/Materials (discovered 2 exits: [*Mat] / [*Min]) -9/Materials History --------- Turn | Location | Event 2 | -11/Scrapyard | Discovered new exit (range 16) 211 | -11/Scrapyard | Entered Materials 316 | -10/Materials | Build established: Mutant 403 | -10/Materials | Discovered new exit (range 7) 542 | -10/Materials | Core integrity fell below 50% 712 | -10/Materials | Discovered new exit (range 8) 736 | -10/Materials | Core integrity fell below 20% 751 | -10/Materials | Entered another Materials area 751 | -9/Materials | Evolved 2 slots: Utility x2 948 | -9/Materials | Core integrity fell below 50% 976 | -9/Materials | Lost 6 parts (1p2n1u2w) 1206 | -9/Materials | Core integrity fell below 20% 1211 | -9/Materials | Destroyed by Y-45 Defender with Heavy Assault Rifle Last Messages --------------- 01118_ R-06 Scavenger collects Ion Engine. 01118_ U-05 Engineer lays Concrete. 01119_ The unstable cave ceiling collapses. 01119_ Acquired 24 matter. 01119_ U-05 Engineer lays Concrete. 01122_ Acquired 18 matter. 01122_ U-05 Engineer lays Concrete. 01123_ U-05 Engineer builds a Door. 01124_ U-05 Engineer lays Concrete. 01136_ U-05 Engineer builds a Door. 01137_ U-05 Engineer builds a Wall. 01145_ U-05 Engineer lays Concrete. 01148_ U-05 Engineer builds a Wall. 01152_ U-05 Engineer lays Concrete. 01153_ U-05 Engineer builds a Wall. 01157_ U-05 Engineer lays Concrete. 01160_ Acquired 31 matter. 01165_ Acquired 8 matter. 01198_ A-02 Transporter destroyed. 01198_ G-34 Mercenary destroyed. Map ----- +----------------------------------------------------+ | ?##???##?#### # # ### ####???? ??? ?????????? | | #??####### #??#?"?? ?? ??#???????? | | #?#?#?#?## % #??#??????????????????? | | ?####??### % ##?#???? ? ???????????? | | ########## ## ### # #?###????#??##????????? | | # # # # # #?##?#?? ?????????????? | | # # ### # ##?#????? ???????????? | | # # #### """ + ? ???? ??????????? | | # # ##?# """ # ###?#????#????????????? | | # %+% #### """ # # #????##?????????????? | | " *# ####[ # # #??#????????????????? | | %= # # ##?######## # ######??#? ?????????? | | # #### # # #??#????????????????? | | % # ### # ##### ? ? ???????????? | | #+#### # """ + ###?#? ?? ???????????? | | ## "" # ##??# ?? ??? ?????????? | | ! / " #a ##?#?? ????? ?????????? | | ## # k #??#? ? ? ?????????? | | ####### ######### ###??????? ???????????? | | ###+#### # ##??#?????#???????????? | | ## #r #??? ??#?#???????????? | | # ## """ + # ?""???????? ????????? | | # "# ##= """ # #??"????#?#? ?????????? | | # ## """ #w + ?"??#?##???????????? | | " "# ## ?# # ???#????????????? | | # # ######### @ # """ ##"?"? ????????? | | ########= ###?##### #? """ #???? ?????????? | | #?##???# #?#??? ?# #? """ ???????????????? | | #?#?#### #??? ???# ??? ??#?"???????????? | | #?##???#######?#???? * ??"???? ? ?????????? | | ####??##?#?#???????? ** ???????????????????? | | ???? ?? ? ??+? *** ??????"????????????? | | ??????? ? ???? ???? = ? ?#??????????????? | | ??????????????? ??#??! %= ##??#??????????????? | | ???????????????? ??? !*= ??????????????????? | | ???????????????????? ??????????????????? | | ??????????????????#? Y ?????????????????? | | ???????????????????! ## ?????????????????? | | ??????????????????? !#??##+####+#????????????????? | | ?????????????????????????????????????????????????? | | ?????????????????????????????????????????????????? | | ?????????????????????????????????????????????????? | | ?????????????????????????????????????????????????? | | ?????????????????????????????????????????????????? | | ?????????????????????????????????????????????????? | | ?????????????????????????????????????????????????? | | ?????????????????????????????????????????????????? | | ?????????????????????????????????????????????????? | | ?????????????????????????????????????????????????? | | ?????????????????????????????????????????????????? | +----------------------------------------------------+ Best States ------------- Heat Dissipation 28 Energy Generation 10 Energy Capacity 250 Matter Stores 300 Matter Capacity 300 Sight Range 16 Terrain Scan Range 16 Terrain Scan Density 60 Propulsion Shielding 33 Evasion (%) 50 Offensive Hacking 10 Item Schematics ----------------- None Robot Schematics ------------------ None Fabricated ------------ Nothing Alien Tech Used ----------------- None Achievements -------------- None Challenges ------------ None Game ------ Seed MyomerCannonScythe Manual? 0 Play Time 00:16:46 Cumulative 40.1 hours Start 2019.11.08 @ 19:28:46 End 2019.11.08 @ 19:44:23 Sessions 1 Manual Loads 0 Difficulty Rogue Special Mode None Game No. 80 Rogue 80 Adventurer 0 Explorer 0 Win Type - Total 0 Types 0/0/0/0/0/0/0 Lore% 23 Gallery% 41 Achievement% 23 Wizard Run 0 Options --------- ASCII 0 Keyboard 0 Movement Mouse Keybinds 0 Fullscreen 1 Font 12/Smallcaps Map View 83x54 Tactical HUD 1 Map Filters NONE Filters NONE Steam 1 RUN: 87ea80b3-a62c-48fa-9196-4bf42125861a